fUSD/lending_fUSD_20250117
["ID","MTS","AMOUNT","RATE_DAILY","PERIOD"]
[349383315,1737144642400,-1228.53,0.00022672,2]
[349383317,1737144642410,-500.0,0.00022672,2]
[349383319,1737144642421,-745.35,0.00022672,2]
[349383321,1737144642431,-500.0,0.00022672,2]
[349383323,1737144642441,-500.0,0.00022672,2]
[349383325,1737144642451,-500.0,0.00022672,2]
[349383327,1737144642460,-1425.46,0.00022672,2]
[349383329,1737144642470,-500.0,0.00022672,2]
[349383331,1737144642479,-500.0,0.00022672,2]
[349383333,1737144642489,-1809.67,0.00022672,2]
[349383335,1737144642499,-500.0,0.00022672,2]
[349383337,1737144642508,-500.0,0.00022672,2]
[349383339,1737144642518,-500.0,0.00022672,2]
[349383342,1737144642527,-500.0,0.00022672,2]
[349383345,1737144642537,-605.25,0.00022672,2]
[349383348,1737144642547,-500.0,0.00022672,2]
[349383351,1737144642557,-500.0,0.00022672,2]
[349383354,1737144642566,-803.17,0.00022672,2]
[349383357,1737144642576,-500.0,0.00022672,2]
[349383359,1737144642585,-500.0,0.00022672,2]
[349383361,1737144642597,-529.85634214,0.00022672,2]
[349383364,1737144642606,-500.0,0.00022672,2]
[349383366,1737144642616,-500.0,0.00022672,2]
[349383369,1737144642626,-500.0,0.00022672,2]
[349383372,1737144642636,-500.0,0.00022672,2]
[349383375,1737144642646,-500.0,0.00022672,2]
[349383379,1737144642655,-1000.0,0.00022672,2]
[349383382,1737144642665,-500.0,0.00022672,2]
[349383386,1737144642675,-500.0,0.00022672,2]
[349383389,1737144642685,-500.0,0.00022672,2]
[349383393,1737144642695,-819.35,0.00022672,2]
[349383395,1737144642706,-500.0,0.00022672,2]
[349383397,1737144642716,-500.0,0.00022672,2]
[349383400,1737144642725,-560.73,0.00022672,2]
[349383402,1737144642734,-500.0,0.00022672,2]
[349383406,1737144642746,-500.0,0.00022672,2]
[349383409,1737144642755,-500.0,0.00022672,2]
[349383412,1737144642764,-500.0,0.00022672,2]
[349383414,1737144642773,-500.0,0.00022672,2]
[349383417,1737144642783,-500.0,0.00022672,2]
[349383419,1737144642793,-584.43,0.00022672,2]
[349383421,1737144642802,-500.0,0.00022672,2]
[349383423,1737144642811,-500.0,0.00022672,2]
[349383424,1737144642820,-31981.43872874,0.00022672,2]
[349383426,1737144642829,-150.0,0.00022745,2]
[349383428,1737144642839,-3899.0,0.00022745,2]
[349383430,1737144642849,-1174.0,0.00022745,2]
[349383432,1737144642858,-9440.6052,0.00022751,2]
[349383434,1737144642868,-500.0,0.00022798,2]
[349383436,1737144642877,-500.0,0.00022798,2]
[349383438,1737144642886,-500.0,0.00022798,2]
[349383440,1737144642896,-659.24,0.00022798,2]
[349383442,1737144642905,-500.0,0.00022798,2]
[349383444,1737144642914,-534.95,0.00022798,2]
[349383445,1737144642923,-31981.43872874,0.00022815,2]
[349383447,1737144642933,-500.0,0.0002285,2]
[349383449,1737144642943,-500.0,0.0002285,2]
[349383451,1737144642954,-571.25,0.0002285,2]
[349383453,1737144642963,-500.0,0.0002285,2]
[349383455,1737144642972,-500.0,0.0002285,2]
[349383457,1737144642982,-500.0,0.0002285,2]
[349383459,1737144642992,-500.0,0.0002285,2]
[349383461,1737144643001,-414.85862432,0.0002285,2]
[349383463,1737144643011,-659.24,0.0002285,2]
[349383465,1737144643021,-500.0,0.0002285,2]
[349383467,1737144643030,-534.95,0.0002285,2]
[349383469,1737144643040,-1020.25567286,0.00022851,10]
[349383471,1737144643049,-426.149066,0.00022851,2]
[349383473,1737144643059,-500.0,0.00022851,2]
[349383475,1737144643069,-500.0,0.00022851,2]
[349383477,1737144643078,-500.0,0.00022851,2]
[349383479,1737144643088,-500.0,0.00022851,2]
[349383481,1737144643100,-500.0,0.00022851,2]
[349383483,1737144643109,-500.0,0.00022851,2]
[349383485,1737144643119,-500.0,0.00022851,2]
[349383487,1737144643128,-500.0,0.00022851,2]
[349383489,1737144643138,-500.0,0.00022851,2]
[349383491,1737144643148,-500.0,0.00022851,2]
[349383493,1737144643158,-659.24,0.00022851,2]
[349383495,1737144643168,-659.24,0.00022851,2]
[349383497,1737144643178,-249.05,0.00022851,2]
[349383499,1737144643188,-534.95,0.00022851,2]
[349383501,1737144643197,-534.95,0.00022851,2]
[349383503,1737144643207,-170.11478398,0.000229,2]
[349383505,1737144643217,-31981.43872874,0.00022957,2]
[349383507,1737144643227,-888.0,0.00022986,2]
[349383509,1737144643237,-155.0,0.00023014,2]
[349383511,1737144643246,-200.0,0.00023016,2]
[349383513,1737144643256,-301.25005644,0.00023021,2]
[349383515,1737144643266,-2112.11765127,0.00023022,2]
[349383517,1737144643275,-2112.11765127,0.00023023,2]
[349383519,1737144643285,-200.0,0.00023024,2]
[349383521,1737144643294,-2112.11765127,0.00023027,2]
[349383523,1737144643304,-2112.11765127,0.00023036,2]
[349383525,1737144643314,-200.0,0.00023047,2]
[349383527,1737144643323,-200.0,0.0002305,2]
[349383529,1737144643333,-301.25005644,0.00023055,2]
[349383531,1737144643342,-3408.61547254,0.0002306,2]
[349383533,1737144643351,-2112.11765127,0.0002306,2]
[349383535,1737144643362,-200.0,0.0002306,2]
[349383537,1737144643371,-200.0,0.00023061,2]
[349383539,1737144643380,-200.0,0.00023062,2]
[349383541,1737144643390,-301.25005644,0.00023063,2]
[349383543,1737144643399,-301.25005644,0.00023068,2]
[349383545,1737144643409,-200.1811951,0.00023084,2]
[349383547,1737144643421,-301.25005644,0.00023088,2]
[349383549,1737144643430,-200.0,0.00023088,2]
[349383551,1737144643439,-200.0,0.00023088,2]
[349383553,1737144643449,-3408.61547254,0.00023097,2]
[349383555,1737144643458,-500.0,0.00023099,2]
[349383557,1737144643468,-500.0,0.00023099,2]
[349383559,1737144643477,-500.0,0.00023099,2]
[349383561,1737144643486,-621.2642024,0.00023099,2]
[349383563,1737144643495,-795.39,0.00023099,2]
[349383564,1737144643504,-645.02,0.00023099,2]
[349383566,1737144643513,-989.88,0.00023099,2]
[349383568,1737144643523,-290.43,0.00023099,2]
[349383570,1737144643533,-154.3,0.00023099,2]
[349383573,1737144643543,-500.0,0.00023099,2]
[349383574,1737144643552,-500.0,0.00023099,2]
[349383576,1737144643563,-500.0,0.00023099,2]
[349383578,1737144643573,-500.0,0.00023099,2]
[349383580,1737144643582,-510.42,0.00023099,2]
[349383583,1737144643592,-500.0,0.00023099,2]
[349383585,1737144643602,-523.8,0.00023099,2]
[349383587,1737144643611,-500.0,0.00023099,2]
[349383588,1737144643620,-500.0,0.00023099,2]
[349383590,1737144643630,-500.0,0.00023099,2]
[349383592,1737144643639,-500.0,0.00023099,2]
[349383594,1737144643648,-690.27,0.00023099,2]
[349383596,1737144643657,-500.0,0.00023099,2]
[349383598,1737144643667,-501.61,0.00023099,2]
[349383600,1737144643676,-802.64092356,0.000231,2]
[349383602,1737144643686,-160.10165233,0.000231,2]
[349383604,1737144643696,-500.0,0.000231,2]
[349383606,1737144643705,-31981.43872874,0.000231,2]
[349383608,1737144643718,-2112.11765127,0.00023101,2]
[349383613,1737144643765,-200.0,0.00023103,2]
[349383615,1737144643775,-200.0,0.00023106,2]
[349383617,1737144643785,-301.25005644,0.0002311,2]
[349383619,1737144643796,-2112.11765127,0.0002311,2]
[349383621,1737144643806,-3408.61547254,0.00023117,2]
[349383623,1737144643817,-200.0,0.00023117,2]
[349383625,1737144643827,-200.0,0.00023118,2]
[349383627,1737144643837,-3408.61547254,0.0002312,2]
[349383629,1737144643848,-3408.61547254,0.00023135,2]
[349383631,1737144643857,-200.0,0.00023138,2]
[349383633,1737144643867,-200.0,0.00023141,2]
[349383635,1737144643877,-3408.61547254,0.00023142,2]
[349383637,1737144643886,-2112.11765127,0.00023144,2]
[349383639,1737144643896,-200.0,0.00023146,2]
[349383641,1737144643905,-200.0,0.00023146,2]
[349383643,1737144643917,-3408.61547254,0.00023152,2]
[349383646,1737144643927,-200.0,0.00023153,2]
[349383649,1737144643937,-301.25005644,0.00023154,2]
[349383652,1737144643947,-150.0,0.00023164,2]
[349383655,1737144643956,-200.0,0.00023165,2]
[349383658,1737144643966,-200.0,0.00023174,2]
[349383661,1737144643976,-3408.61547254,0.00023174,2]
[349383664,1737144643986,-6111.2456538,0.0002318,2]
[349383666,1737144643995,-915.44,0.00023182,2]
[349383668,1737144644004,-301.25005644,0.00023185,2]
[349383670,1737144644014,-583.75255856,0.00023188,2]
[349383672,1737144644023,-583.75255856,0.0002319,2]
[349383674,1737144644032,-583.75255856,0.0002319,2]
[349383675,1737144644042,-399.2476104,0.00023195,2]
[349383677,1737144644052,-465.06,0.00023195,2]
[349383679,1737144644061,-650.9,0.00023195,2]
[349383682,1737144644072,-500.0,0.00023195,2]
[349383683,1737144644082,-500.0,0.00023195,2]
[349383685,1737144644092,-1348.31,0.00023195,2]
[349383687,1737144644102,-500.0,0.00023195,2]
[349383690,1737144644112,-500.0,0.00023195,2]
[349383692,1737144644122,-512.24,0.00023195,2]
[349383693,1737144644132,-692.1,0.00023195,2]
[349383695,1737144644144,-915.3,0.00023195,2]
[349383697,1737144644157,-218.52,0.00023195,2]
[349383699,1737144644172,-601.82,0.00023195,2]
[349383701,1737144644181,-563.88,0.00023195,2]
[349383703,1737144644190,-532.01,0.00023195,2]
[349383705,1737144644200,-500.0,0.00023195,2]
[349383707,1737144644209,-500.0,0.00023196,2]
[349383709,1737144644218,-552.04,0.00023196,2]
[349383711,1737144644228,-500.0,0.00023196,2]
[349383713,1737144644237,-659.24,0.00023196,2]
[349383715,1737144644248,-534.95,0.00023196,2]
[349383717,1737144644257,-500.0,0.00023196,2]
[349383719,1737144644267,-500.0,0.00023196,2]
[349383721,1737144644277,-200.0,0.00023196,2]
[349383723,1737144644287,-200.0,0.00023197,2]
[349383725,1737144644296,-200.0,0.00023197,2]
[349383727,1737144644305,-500.0,0.00023197,2]
[349383729,1737144644314,-500.0,0.00023197,2]
[349383731,1737144644324,-500.0,0.00023197,2]
[349383733,1737144644334,-500.0,0.00023197,2]
[349383735,1737144644343,-500.0,0.00023197,2]
[349383737,1737144644352,-500.0,0.00023197,2]
[349383739,1737144644361,-528.88,0.00023197,2]
[349383741,1737144644370,-500.0,0.00023197,2]
[349383743,1737144644380,-182.76,0.00023197,2]
[349383745,1737144644389,-500.0,0.00023197,2]
[349383747,1737144644399,-500.0,0.00023197,2]
[349383749,1737144644408,-500.08,0.00023197,2]
[349383751,1737144644420,-339.69,0.00023197,2]
[349383753,1737144644429,-500.0,0.00023197,2]
[349383755,1737144644439,-500.0,0.00023197,2]
[349383757,1737144644448,-500.0,0.00023197,2]
[349383759,1737144644458,-659.24,0.00023197,2]
[349383761,1737144644467,-519.34,0.00023197,2]
[349383763,1737144644476,-500.0,0.00023197,2]
[349383764,1737144644485,-500.0,0.00023197,2]
[349383766,1737144644495,-534.95,0.00023197,2]
[349383768,1737144644504,-500.0,0.00023197,2]
[349383770,1737144644513,-500.0,0.00023197,2]
[349383772,1737144644523,-500.0,0.00023197,2]
[349383774,1737144644532,-500.0,0.00023197,2]
[349383775,1737144644541,-600.0,0.00023197,2]
[349383776,1737144644550,-500.0,0.00023197,2]
[349383777,1737144644560,-500.0,0.00023197,2]
[349383778,1737144644570,-500.0,0.00023197,2]
[349383779,1737144644579,-1014.29,0.00023197,2]
[349383780,1737144644588,-500.0,0.00023197,2]
[349383781,1737144644597,-474.15,0.00023197,2]
[349383782,1737144644605,-793.32,0.00023197,2]
[349383783,1737144644614,-1214.72,0.00023197,2]
[349383784,1737144644622,-576.26,0.00023197,2]
[349383785,1737144644631,-1012.86,0.00023197,2]
[349383786,1737144644640,-500.0,0.00023197,2]
[349383787,1737144644649,-1228.53,0.00023197,2]
[349383788,1737144644658,-500.0,0.00023197,2]
[349383790,1737144644669,-745.35,0.00023197,2]
[349383792,1737144644678,-500.0,0.00023197,2]
[349383793,1737144644687,-500.0,0.00023197,2]
[349383794,1737144644700,-1425.46,0.00023197,2]
[349383796,1737144644710,-500.0,0.00023197,2]
[349383798,1737144644719,-1809.67,0.00023197,2]
[349383799,1737144644728,-481.06499604,0.00023197,2]
[349383801,1737144644739,-500.0,0.00023197,2]
[349383803,1737144644748,-500.0,0.00023197,2]
[349383805,1737144644758,-500.0,0.00023197,2]
[349383806,1737144644768,-605.25,0.00023197,2]
[349383807,1737144644777,-500.0,0.00023197,2]
[349383808,1737144644787,-500.0,0.00023197,2]
[349383809,1737144644797,-803.17,0.00023197,2]
[349383810,1737144644805,-500.0,0.00023197,2]
[349383811,1737144644815,-500.0,0.00023197,2]
[349383812,1737144644824,-500.0,0.00023197,2]
[349383813,1737144644834,-500.0,0.00023197,2]
[349383814,1737144644844,-500.0,0.00023197,2]
[349383815,1737144644853,-500.0,0.00023197,2]
[349383816,1737144644862,-500.0,0.00023197,2]
[349383817,1737144644872,-1000.0,0.00023197,2]
[349383818,1737144644881,-500.0,0.00023197,2]
[349383819,1737144644891,-559.02,0.00023197,2]
[349383820,1737144644902,-559.94,0.00023197,2]
[349383821,1737144644912,-819.35,0.00023197,2]
[349383822,1737144644923,-560.73,0.00023197,2]
[349383823,1737144644933,-150.75,0.00023197,2]
[349383824,1737144644944,-500.0,0.00023197,2]
[349383825,1737144644953,-500.0,0.00023197,2]
[349383826,1737144644963,-500.0,0.00023197,2]
[349383827,1737144644974,-408.68,0.00023197,2]
[349383828,1737144644983,-500.0,0.00023198,2]
[349383829,1737144644992,-500.0,0.00023198,2]
[349383830,1737144645002,-379.68,0.00023198,2]
[349383831,1737144645012,-500.0,0.00023198,2]
[349383832,1737144645022,-500.0,0.00023198,2]
[349383833,1737144645032,-500.0,0.00023198,2]
[349383834,1737144645042,-443.26,0.00023198,2]
[349383835,1737144645052,-500.0,0.00023198,2]
[349383836,1737144645061,-500.0,0.00023198,2]
[349383837,1737144645071,-500.0,0.00023198,2]
[349383838,1737144645080,-542.54,0.00023198,2]
[349383839,1737144645090,-528.88,0.00023198,2]
[349383840,1737144645100,-248.36,0.00023198,2]
[349383841,1737144645110,-500.0,0.00023198,2]
[349383842,1737144645121,-626.15,0.00023198,2]
[349383843,1737144645131,-500.0,0.00023198,2]
[349383844,1737144645141,-500.0,0.00023198,2]
[349383845,1737144645151,-500.0,0.00023198,2]
[349383846,1737144645160,-659.24,0.00023198,2]
[349383847,1737144645172,-659.24,0.00023198,2]
[349383848,1737144645182,-659.24,0.00023198,2]
[349383849,1737144645192,-659.24,0.00023198,2]
[349383850,1737144645202,-519.34,0.00023198,2]
[349383851,1737144645212,-659.24,0.00023198,2]
[349383852,1737144645223,-659.24,0.00023198,2]
[349383853,1737144645234,-659.24,0.00023198,2]
[349383854,1737144645244,-659.24,0.00023198,2]
[349383855,1737144645254,-659.24,0.00023198,2]
[349383856,1737144645264,-659.43957178,0.00023198,2]
[349383857,1737144645274,-500.0,0.00023198,2]
[349383858,1737144645285,-299.44,0.00023198,2]
[349383859,1737144645295,-534.95,0.00023198,2]
[349383860,1737144645305,-534.95,0.00023198,2]
[349383861,1737144645316,-534.95,0.00023198,2]
[349383862,1737144645326,-534.95,0.00023198,2]
[349383863,1737144645336,-534.95,0.00023198,2]
[349383864,1737144645346,-534.95,0.00023198,2]
[349383865,1737144645356,-534.95,0.00023198,2]
[349383866,1737144645366,-534.95,0.00023198,2]
[349383867,1737144645376,-534.95,0.00023198,2]
[349383868,1737144645386,-535.11496305,0.00023198,2]
[349383869,1737144645395,-500.0,0.00023198,2]
[349383870,1737144645407,-500.0,0.00023198,2]
[349383871,1737144645421,-500.0,0.00023198,2]
[349383872,1737144645431,-500.0,0.00023198,2]
[349383873,1737144645441,-500.0,0.00023198,2]
[349383874,1737144645452,-500.0,0.00023198,2]
[349383875,1737144645462,-1014.29,0.00023198,2]
[349383876,1737144645473,-500.0,0.00023198,2]
[349383877,1737144645482,-793.32,0.00023198,2]
[349383878,1737144645493,-1214.72,0.00023198,2]
[349383879,1737144645503,-500.0,0.00023198,2]
[349383880,1737144645512,-1012.86,0.00023198,2]
[349383881,1737144645522,-500.0,0.00023198,2]
[349383882,1737144645532,-1228.53,0.00023198,2]
[349383883,1737144645542,-500.0,0.00023198,2]
[349383884,1737144645552,-795.39,0.00023198,2]
[349383886,1737144645562,-645.02,0.00023198,2]
[349383887,1737144645571,-745.35,0.00023198,2]
[349383888,1737144645581,-989.88,0.00023198,2]
[349383889,1737144645591,-500.0,0.00023198,2]
[349383890,1737144645602,-500.0,0.00023198,2]
[349383891,1737144645612,-1425.46,0.00023198,2]
[349383892,1737144645622,-500.0,0.00023198,2]
[349383893,1737144645633,-500.0,0.00023198,2]
[349383894,1737144645643,-1809.67,0.00023198,2]
[349383895,1737144645653,-500.0,0.00023198,2]
[349383896,1737144645665,-500.0,0.00023198,2]
[349383897,1737144645675,-500.0,0.00023198,2]
[349383898,1737144645684,-500.0,0.00023198,2]
[349383899,1737144645696,-500.0,0.00023198,2]
[349383900,1737144645708,-605.25,0.00023198,2]
[349383902,1737144645718,-500.0,0.00023198,2]
[349383903,1737144645728,-500.0,0.00023198,2]
[349383904,1737144645740,-803.17,0.00023198,2]
[349383905,1737144645750,-500.0,0.00023198,2]
[349383906,1737144645760,-650.9,0.00023198,2]
[349383907,1737144645770,-650.9,0.00023198,2]
[349383908,1737144645781,-500.0,0.00023198,2]
[349383909,1737144645791,-500.0,0.00023198,2]
[349383910,1737144645801,-500.0,0.00023198,2]
[349383911,1737144645811,-500.0,0.00023198,2]
[349383912,1737144645821,-500.0,0.00023198,2]
[349383913,1737144645831,-500.0,0.00023198,2]
[349383914,1737144645841,-500.0,0.00023198,2]
[349383915,1737144645851,-512.7,0.00023198,2]
[349383916,1737144645861,-500.0,0.00023198,2]
[349383917,1737144645871,-1348.31,0.00023198,2]
[349383918,1737144645881,-1348.31,0.00023198,2]
[349383919,1737144645891,-500.0,0.00023198,2]
[349383920,1737144645902,-205.92,0.00023198,2]
[349383921,1737144645911,-538.47,0.00023198,2]
[349383922,1737144645922,-498.2,0.00023198,2]
[349383923,1737144645932,-819.35,0.00023198,2]
[349383924,1737144645942,-560.73,0.00023198,2]
[349383925,1737144645951,-510.42,0.00023198,2]
[349383926,1737144645960,-500.0,0.00023198,2]
[349383927,1737144645972,-500.0,0.00023198,2]
[349383928,1737144645982,-500.0,0.00023198,2]
[349383929,1737144645992,-500.0,0.00023198,2]
[349383930,1737144646001,-500.0,0.00023198,2]
[349383931,1737144646011,-523.8,0.00023198,2]
[349383932,1737144646021,-500.0,0.00023198,2]
[349383933,1737144646030,-500.0,0.00023198,2]
[349383934,1737144646041,-512.24,0.00023198,2]
[349383935,1737144646051,-512.24,0.00023198,2]
[349383936,1737144646061,-500.0,0.00023198,2]
[349383937,1737144646071,-692.1,0.00023198,2]
[349383938,1737144646081,-692.1,0.00023198,2]
[349383939,1737144646091,-915.3,0.00023198,2]
[349383940,1737144646101,-915.3,0.00023198,2]
[349383941,1737144646112,-500.0,0.00023198,2]
[349383942,1737144646122,-500.0,0.00023198,2]
[349383943,1737144646132,-601.82,0.00023198,2]
[349383944,1737144646143,-601.82,0.00023198,2]
[349383945,1737144646154,-563.88,0.00023198,2]
[349383946,1737144646165,-563.88,0.00023198,2]
[349383947,1737144646175,-690.27,0.00023198,2]
[349383948,1737144646185,-532.01,0.00023198,2]
[349383949,1737144646195,-532.01,0.00023198,2]
[349383950,1737144646206,-500.0,0.00023198,2]
[349383951,1737144646215,-500.0,0.00023198,2]
[349383952,1737144646226,-500.0,0.00023198,2]
[349383953,1737144646236,-501.61,0.00023198,2]
[349383954,1737144646246,-3579.0,0.00023199,2]
[349383955,1737144646256,-500.0,0.00023199,2]
[349383956,1737144646266,-500.0,0.00023199,2]
[349383957,1737144646276,-500.0,0.00023199,2]
[349383958,1737144646285,-500.0,0.00023199,2]
[349383959,1737144646295,-500.0,0.00023199,2]
[349383960,1737144646306,-500.0,0.00023199,2]
[349383961,1737144646317,-354.23,0.00023199,2]
[349383962,1737144646327,-246.75,0.00023199,2]
[349383963,1737144646338,-500.0,0.00023199,2]
[349383964,1737144646347,-500.0,0.00023199,2]
[349383965,1737144646357,-500.0,0.00023199,2]
[349383966,1737144646367,-204.5,0.00023199,2]
[349383967,1737144646377,-500.0,0.00023199,2]
[349383968,1737144646387,-500.0,0.00023199,2]
[349383969,1737144646397,-500.0,0.00023199,2]
[349383970,1737144646407,-500.0,0.00023199,2]
[349383971,1737144646419,-500.0,0.00023199,2]
[349383972,1737144646429,-500.0,0.00023199,2]
[349383973,1737144646440,-500.0,0.00023199,2]
[349383974,1737144646450,-500.0,0.00023199,2]
[349383975,1737144646460,-500.0,0.00023199,2]
[349383976,1737144646471,-500.0,0.00023199,2]
[349383977,1737144646481,-500.0,0.00023199,2]
[349383978,1737144646491,-591.9,0.00023199,2]
[349383979,1737144646501,-528.88,0.00023199,2]
[349383980,1737144646511,-528.88,0.00023199,2]
[349383981,1737144646520,-528.88,0.00023199,2]
[349383982,1737144646530,-528.88,0.00023199,2]
[349383983,1737144646540,-528.88,0.00023199,2]
[349383984,1737144646550,-528.88,0.00023199,2]
[349383985,1737144646559,-528.88,0.00023199,2]
[349383986,1737144646569,-528.88,0.00023199,2]
[349383987,1737144646584,-528.88,0.00023199,2]
[349383988,1737144646594,-528.88,0.00023199,2]
[349383989,1737144646604,-528.88,0.00023199,2]
[349383990,1737144646615,-528.88,0.00023199,2]
[349383991,1737144646625,-528.88,0.00023199,2]
[349383992,1737144646635,-528.88,0.00023199,2]
[349383993,1737144646645,-528.88,0.00023199,2]
[349383994,1737144646655,-528.88,0.00023199,2]
[349383995,1737144646666,-528.88,0.00023199,2]
[349383996,1737144646676,-528.88,0.00023199,2]
[349383997,1737144646686,-528.89274477,0.00023199,2]
[349383998,1737144646698,-530.52,0.00023199,2]
[349383999,1737144646709,-366.96,0.00023199,2]
[349384000,1737144646719,-500.0,0.00023199,2]
[349384001,1737144646728,-416.63,0.00023199,2]
[349384002,1737144646738,-1000.0,0.00023199,2]
[349384003,1737144646749,-500.0,0.00023199,2]
[349384004,1737144646759,-493.36,0.00023199,2]
[349384005,1737144646770,-519.34,0.00023199,2]
[349384006,1737144646781,-519.34,0.00023199,2]
[349384007,1737144646791,-519.34,0.00023199,2]
[349384008,1737144646802,-519.34,0.00023199,2]
[349384009,1737144646811,-519.34,0.00023199,2]
[349384010,1737144646821,-519.34,0.00023199,2]
[349384011,1737144646831,-519.34,0.00023199,2]
[349384012,1737144646840,-519.34,0.00023199,2]
[349384013,1737144646850,-519.34,0.00023199,2]
[349384014,1737144646859,-519.34,0.00023199,2]
[349384015,1737144646869,-519.34,0.00023199,2]
[349384016,1737144646879,-519.34,0.00023199,2]
[349384017,1737144646889,-500.0,0.00023199,2]
[349384018,1737144646899,-519.34,0.00023199,2]
[349384019,1737144646909,-326.4,0.00023199,2]
[349384020,1737144646919,-519.34,0.00023199,2]
[349384021,1737144646929,-519.34,0.00023199,2]
[349384022,1737144646939,-519.34,0.00023199,2]
[349384023,1737144646949,-519.34,0.00023199,2]
[349384024,1737144646959,-519.34,0.00023199,2]
[349384025,1737144646971,-519.57725792,0.00023199,2]
[349384026,1737144646980,-500.0,0.00023199,2]
[349384027,1737144646990,-500.0,0.00023199,2]
[349384028,1737144647000,-500.0,0.00023199,2]
[349384029,1737144647009,-500.0,0.00023199,2]
[349384030,1737144647019,-500.0,0.00023199,2]
[349384031,1737144647028,-347.6,0.00023199,2]
[349384032,1737144647039,-500.0,0.00023199,2]
[349384033,1737144647049,-500.0,0.00023199,2]
[349384034,1737144647059,-500.0,0.00023199,2]
[349384035,1737144647069,-500.0,0.00023199,2]
[349384036,1737144647079,-500.0,0.00023199,2]
[349384037,1737144647089,-500.0,0.00023199,2]
[349384038,1737144647098,-500.0,0.00023199,2]
[349384039,1737144647108,-500.0,0.00023199,2]
[349384040,1737144647118,-500.0,0.00023199,2]
[349384041,1737144647127,-500.0,0.00023199,2]
[349384042,1737144647137,-500.0,0.00023199,2]
[349384043,1737144647147,-645.06,0.00023199,2]
[349384044,1737144647157,-500.0,0.00023199,2]
[349384045,1737144647311,-500.0,0.00023199,2]
[349384046,1737144647320,-349.2435245,0.00023199,2]
[349384047,1737144647329,-500.0,0.00023199,2]
[349384048,1737144647339,-500.0,0.00023199,2]
[349384049,1737144647348,-500.0,0.00023199,2]
[349384050,1737144647357,-500.0,0.00023199,2]
[349384051,1737144647366,-500.0,0.00023199,2]
[349384052,1737144647375,-500.0,0.00023199,2]
[349384053,1737144647384,-500.0,0.00023199,2]
[349384054,1737144647393,-500.0,0.00023199,2]
[349384055,1737144647403,-500.0,0.00023199,2]
[349384056,1737144647412,-500.0,0.00023199,2]
[349384057,1737144647422,-523.94452042,0.00023199,2]
[349384058,1737144647431,-500.0,0.00023199,2]
[349384059,1737144647441,-500.0,0.00023199,2]
[349384060,1737144647450,-500.0,0.00023199,2]
[349384061,1737144647459,-500.0,0.00023199,2]
[349384062,1737144647468,-500.0,0.00023199,2]
[349384063,1737144647477,-284.32,0.00023199,2]
[349384064,1737144647487,-500.0,0.00023199,2]
[349384065,1737144647496,-500.0,0.00023199,2]
[349384066,1737144647505,-500.0,0.00023199,2]
[349384067,1737144647514,-500.0,0.00023199,2]